[Event "December 19 Early 2023"]
[Site "https://www.chess.com"]
[Date "2023.12.19"]
[Round "8"]
[White "Nery Junior, Jose Antonio"]
[Black "Sadovsky, Artem"]
[Result "0-1"]
[Board "126"]
[TimeControl "180+1"]
[WhiteFideId "2104822"]
[BlackFideId "4155840"]
[WhiteElo "2197"]
[BlackElo "2314"]
[WhiteTeam "BRA"]
[BlackTeam "FID"]
[WhiteClock "0:00:00"]
[BlackClock "0:03:05"]

1. e4 {[%clk 0:03:00]}  g6 {[%clk 0:03:00]} 2. d4 {[%clk 0:02:59]}  Bg7 {[%clk 0:03:01]} 3. Nc3 {[%clk 0:02:59]}  c6 {[%clk 0:03:01]} 4. g3 {[%clk 0:02:55]}  d5 {[%clk 0:03:02]} 5. Bg2 {[%clk 0:02:55]}  dxe4 {[%clk 0:03:03]} 6. Nge2 {[%clk 0:02:50]}  f5 {[%clk 0:03:02]} 7. O-O {[%clk 0:02:48]}  Nf6 {[%clk 0:03:03]} 8. Bf4 {[%clk 0:02:45]}  O-O {[%clk 0:03:02]} 9. Qd2 {[%clk 0:02:46]}  Be6 {[%clk 0:03:02]} 10. Bh6 {[%clk 0:02:43]}  Nbd7 {[%clk 0:03:01]} 11. Bxg7 {[%clk 0:02:40]}  Kxg7 {[%clk 0:03:02]} 12. Nf4 {[%clk 0:02:40]}  Bf7 {[%clk 0:03:02]} 13. d5 {[%clk 0:02:39]}  Nb6 {[%clk 0:03:00]} 14. Rad1 {[%clk 0:02:32]}  cxd5 {[%clk 0:02:59]} 15. Nb5 {[%clk 0:02:30]}  e5 {[%clk 0:02:59]} 16. Ne2 {[%clk 0:02:21]}  a6 {[%clk 0:02:59]} 17. Nbc3 {[%clk 0:02:21]}  Nc4 {[%clk 0:03:00]} 18. Qc1 {[%clk 0:02:20]}  d4 {[%clk 0:02:59]} 19. b3 {[%clk 0:02:21]}  Nd6 {[%clk 0:02:58]} 20. Na4 {[%clk 0:02:18]}  b5 {[%clk 0:02:57]} 21. Nb2 {[%clk 0:02:18]}  Rc8 {[%clk 0:02:57]} 22. a4 {[%clk 0:02:17]}  Qb6 {[%clk 0:02:56]} 23. axb5 {[%clk 0:02:17]}  axb5 {[%clk 0:02:57]} 24. h3 {[%clk 0:02:16]}  Bxb3 {[%clk 0:02:58]} 25. Rd2 {[%clk 0:02:12]}  d3 {[%clk 0:02:56]} 26. Nxd3 {[%clk 0:01:50]}  exd3 {[%clk 0:02:55]} 27. Rxd3 {[%clk 0:01:51]}  Bxc2 {[%clk 0:02:53]} 28. Rc3 {[%clk 0:01:49]}  Be4 {[%clk 0:02:52]} 29. Rd1 {[%clk 0:01:43]}  Rxc3 {[%clk 0:02:51]} 30. Nxc3 {[%clk 0:01:41]}  Rc8 {[%clk 0:02:50]} 31. Qd2 {[%clk 0:01:33]}  Bxg2 {[%clk 0:02:50]} 32. Kxg2 {[%clk 0:01:30]}  Qc6+ {[%clk 0:02:51]} 33. Kh2 {[%clk 0:01:25]}  Nfe4 {[%clk 0:02:51]} 34. Nxe4 {[%clk 0:01:25]}  Nxe4 {[%clk 0:02:52]} 35. Qe3 {[%clk 0:01:23]}  b4 {[%clk 0:02:52]} 36. Rd3 {[%clk 0:01:20]}  Qc5 {[%clk 0:02:50]} 37. Rd7+ {[%clk 0:01:18]}  Kf6 {[%clk 0:02:50]} 38. Qxc5 {[%clk 0:01:11]}  Rxc5 {[%clk 0:02:51]} 39. Rxh7 {[%clk 0:01:12]}  b3 {[%clk 0:02:51]} 40. Rb7 {[%clk 0:01:12]}  Rc3 {[%clk 0:02:51]} 41. Kg2 {[%clk 0:01:11]}  Nc5 {[%clk 0:02:52]} 42. Rb6+ {[%clk 0:01:10]}  Ke7 {[%clk 0:02:53]} 43. f3 {[%clk 0:01:04]}  Kd7 {[%clk 0:02:53]} 44. g4 {[%clk 0:01:01]}  Kc7 {[%clk 0:02:54]} 45. Rb5 {[%clk 0:01:00]}  fxg4 {[%clk 0:02:54]} 46. fxg4 {[%clk 0:01:00]}  Kc6 {[%clk 0:02:55]} 47. Rb8 {[%clk 0:00:59]}  Kd5 {[%clk 0:02:55]} 48. h4 {[%clk 0:00:59]}  Kc4 {[%clk 0:02:56]} 49. h5 {[%clk 0:00:59]}  gxh5 {[%clk 0:02:57]} 50. gxh5 {[%clk 0:01:00]}  Rc2+ {[%clk 0:02:58]} 51. Kf3 {[%clk 0:00:59]}  b2 {[%clk 0:02:59]} 52. h6 {[%clk 0:00:58]}  Nb3 {[%clk 0:02:59]} 53. Rc8+ {[%clk 0:00:54]}  Kd3 {[%clk 0:03:00]} 54. Rxc2 {[%clk 0:00:52]}  Kxc2 {[%clk 0:03:01]} 55. h7 {[%clk 0:00:52]}  b1=Q {[%clk 0:03:01]} 56. h8=Q {[%clk 0:00:53]}  Qf1+ {[%clk 0:03:02]} 57. Ke4 {[%clk 0:00:52]}  Qe2+ {[%clk 0:03:02]} 58. Kd5 {[%clk 0:00:53]}  e4 {[%clk 0:03:02]} 59. Qc8+ {[%clk 0:00:51]}  Kd1 {[%clk 0:03:02]} 60. Qe8 {[%clk 0:00:43]}  Nd2 {[%clk 0:03:03]} 61. Qa4+ {[%clk 0:00:41]}  Ke1 {[%clk 0:03:03]} 62. Qa1+ {[%clk 0:00:37]}  Kf2 {[%clk 0:03:03]} 63. Qd4+ {[%clk 0:00:35]}  Qe3 {[%clk 0:03:03]} 64. Qf6+ {[%clk 0:00:34]}  Nf3 {[%clk 0:03:01]} 65. Qf5 {[%clk 0:00:29]}  Qd4+ {[%clk 0:03:00]} 66. Ke6 {[%clk 0:00:28]}  e3 {[%clk 0:03:01]} 67. Qc2+ {[%clk 0:00:25]}  e2 {[%clk 0:03:01]} 68. Kf7 {[%clk 0:00:22]}  Qe5 {[%clk 0:03:02]} 69. Kg8 {[%clk 0:00:18]}  Qe3 {[%clk 0:03:03]} 70. Kh7 {[%clk 0:00:17]}  Qd2 {[%clk 0:03:04]} 71. Qc5+ {[%clk 0:00:16]}  Qd4 {[%clk 0:03:05]} 72. Qc2 {[%clk 0:00:16]}  Kf1 {[%clk 0:03:05]} 73. Qf5 {[%clk 0:00:13]}  Qe3 {[%clk 0:03:05]} 74. Qh3+ {[%clk 0:00:12]}  Kf2 {[%clk 0:03:04]} 75. Qh1 {[%clk 0:00:00]}  e1=Q {[%clk 0:03:05]} 0-1

[Event "December 19 Early 2023"]
[Site "https://www.chess.com"]
[Date "2023.12.19"]
[Round "8"]
[White "Borawski, Jakub"]
[Black "Rogov, Matfey"]
[Result "1-0"]
[Board "127"]
[TimeControl "180+1"]
[WhiteFideId "1143000"]
[BlackFideId "44191308"]
[WhiteElo "2052"]
[BlackElo "2057"]
[WhiteTeam "POL"]
[BlackTeam "RUS"]
[WhiteClock "0:00:04"]
[BlackClock "0:00:02"]

1. f4 {[%clk 0:03:00]}  e5 {[%clk 0:02:59]} 2. fxe5 {[%clk 0:03:01]}  d6 {[%clk 0:03:00]} 3. exd6 {[%clk 0:03:01]}  Bxd6 {[%clk 0:03:00]} 4. Nf3 {[%clk 0:03:01]}  g5 {[%clk 0:03:01]} 5. g3 {[%clk 0:03:01]}  g4 {[%clk 0:03:00]} 6. Nh4 {[%clk 0:03:01]}  Ne7 {[%clk 0:03:01]} 7. d4 {[%clk 0:03:01]}  Ng6 {[%clk 0:02:59]} 8. Nxg6 {[%clk 0:03:00]}  hxg6 {[%clk 0:03:00]} 9. Qd3 {[%clk 0:02:59]}  Bf5 {[%clk 0:02:54]} 10. e4 {[%clk 0:02:56]}  Qe7 {[%clk 0:02:50]} 11. Bg2 {[%clk 0:02:54]}  Nc6 {[%clk 0:02:43]} 12. c3 {[%clk 0:02:30]}  O-O-O {[%clk 0:02:35]} 13. Be3 {[%clk 0:02:30]}  Be6 {[%clk 0:02:03]} 14. Bf2 {[%clk 0:02:05]}  f5 {[%clk 0:01:59]} 15. Nd2 {[%clk 0:02:04]}  f4 {[%clk 0:01:53]} 16. gxf4 {[%clk 0:01:58]}  Bxf4 {[%clk 0:01:54]} 17. Bg3 {[%clk 0:01:13]}  Ne5 {[%clk 0:01:47]} 18. Qe2 {[%clk 0:01:13]}  Bxg3+ {[%clk 0:01:44]} 19. hxg3 {[%clk 0:01:14]}  Nf3+ {[%clk 0:01:32]} 20. Nxf3 {[%clk 0:01:09]}  gxf3 {[%clk 0:01:33]} 21. Qxf3 {[%clk 0:01:00]}  Qg5 {[%clk 0:01:31]} 22. Rxh8 {[%clk 0:00:45]}  Rxh8 {[%clk 0:01:32]} 23. Qf4 {[%clk 0:00:45]}  Qh5 {[%clk 0:01:01]} 24. Bf3 {[%clk 0:00:37]}  Qh2 {[%clk 0:00:49]} 25. O-O-O {[%clk 0:00:37]}  Bxa2 {[%clk 0:00:43]} 26. Rh1 {[%clk 0:00:33]}  Qxh1+ {[%clk 0:00:38]} 27. Bxh1 {[%clk 0:00:34]}  Rxh1+ {[%clk 0:00:38]} 28. Kd2 {[%clk 0:00:31]}  Bc4 {[%clk 0:00:32]} 29. Qf8+ {[%clk 0:00:25]}  Kd7 {[%clk 0:00:33]} 30. Qg7+ {[%clk 0:00:26]}  Kd8 {[%clk 0:00:30]} 31. Qf6+ {[%clk 0:00:25]}  Kd7 {[%clk 0:00:29]} 32. d5 {[%clk 0:00:24]}  Rh2+ {[%clk 0:00:25]} 33. Ke3 {[%clk 0:00:25]}  c5 {[%clk 0:00:20]} 34. Qe6+ {[%clk 0:00:16]}  Kc7 {[%clk 0:00:17]} 35. Qxg6 {[%clk 0:00:16]}  Rxb2 {[%clk 0:00:14]} 36. Kf4 {[%clk 0:00:16]}  a5 {[%clk 0:00:14]} 37. d6+ {[%clk 0:00:11]}  Kc6 {[%clk 0:00:12]} 38. Ke5 {[%clk 0:00:12]}  Kb6 {[%clk 0:00:04]} 39. d7+ {[%clk 0:00:11]}  Kc7 {[%clk 0:00:05]} 40. Qe8 {[%clk 0:00:07]}  Rd2 {[%clk 0:00:05]} 41. Qc8+ {[%clk 0:00:07]}  Kb6 {[%clk 0:00:06]} 42. d8=Q+ {[%clk 0:00:07]}  Rxd8 {[%clk 0:00:07]} 43. Qxd8+ {[%clk 0:00:08]}  Kb5 {[%clk 0:00:08]} 44. Qc7 {[%clk 0:00:08]}  b6 {[%clk 0:00:08]} 45. Qd7+ {[%clk 0:00:06]}  Ka6 {[%clk 0:00:08]} 46. Kd6 {[%clk 0:00:05]}  Bb3 {[%clk 0:00:03]} 47. Kc7 {[%clk 0:00:04]}  a4 {[%clk 0:00:02]} 48. Qc6 {[%clk 0:00:04]}  a3 {[%clk 0:00:02]} 49. Qxb6# {[%clk 0:00:04]} 1-0

[Event "December 19 Early 2023"]
[Site "https://www.chess.com"]
[Date "2023.12.19"]
[Round "8"]
[White "Sreyas Payyappat"]
[Black "Hoffmann, Asa"]
[Result "1-0"]
[Board "128"]
[TimeControl "180+1"]
[WhiteFideId "46674969"]
[BlackFideId "2001470"]
[WhiteElo "2043"]
[BlackElo "2117"]
[WhiteTeam "IND"]
[BlackTeam "USA"]
[WhiteClock "0:00:38"]
[BlackClock "0:01:02"]

1. e4 {[%clk 0:03:00]}  d6 {[%clk 0:02:54]} 2. d4 {[%clk 0:03:00]}  Nf6 {[%clk 0:02:51]} 3. Nc3 {[%clk 0:02:58]}  c6 {[%clk 0:02:50]} 4. Nf3 {[%clk 0:02:56]}  Bg4 {[%clk 0:02:49]} 5. Bd3 {[%clk 0:02:55]}  e6 {[%clk 0:02:49]} 6. h3 {[%clk 0:02:55]}  Bh5 {[%clk 0:02:48]} 7. O-O {[%clk 0:02:53]}  d5 {[%clk 0:02:48]} 8. e5 {[%clk 0:02:52]}  Nfd7 {[%clk 0:02:46]} 9. g4 {[%clk 0:02:51]}  Bg6 {[%clk 0:02:46]} 10. Nh2 {[%clk 0:02:50]}  c5 {[%clk 0:02:45]} 11. Be3 {[%clk 0:02:46]}  cxd4 {[%clk 0:02:45]} 12. Bxd4 {[%clk 0:02:47]}  Nc6 {[%clk 0:02:45]} 13. Nb5 {[%clk 0:02:45]}  Nxd4 {[%clk 0:02:42]} 14. Nxd4 {[%clk 0:02:46]}  Nxe5 {[%clk 0:02:42]} 15. f4 {[%clk 0:02:40]}  Bxd3 {[%clk 0:02:39]} 16. cxd3 {[%clk 0:02:41]}  Nc6 {[%clk 0:02:39]} 17. Nxc6 {[%clk 0:02:40]}  bxc6 {[%clk 0:02:38]} 18. f5 {[%clk 0:02:40]}  e5 {[%clk 0:02:37]} 19. Nf3 {[%clk 0:02:38]}  f6 {[%clk 0:02:37]} 20. Kh1 {[%clk 0:02:32]}  Bd6 {[%clk 0:02:32]} 21. g5 {[%clk 0:02:14]}  fxg5 {[%clk 0:02:30]} 22. Qa4 {[%clk 0:01:56]}  Qd7 {[%clk 0:02:26]} 23. Nxg5 {[%clk 0:01:54]}  O-O {[%clk 0:02:21]} 24. Qg4 {[%clk 0:01:48]}  Rf6 {[%clk 0:02:13]} 25. Ne6 {[%clk 0:01:46]}  Re8 {[%clk 0:02:03]} 26. Rg1 {[%clk 0:01:44]}  Rfxe6 {[%clk 0:01:55]} 27. fxe6 {[%clk 0:01:42]}  Rxe6 {[%clk 0:01:55]} 28. Rac1 {[%clk 0:01:35]}  Bf8 {[%clk 0:01:52]} 29. Qf5 {[%clk 0:01:31]}  Qf7 {[%clk 0:01:48]} 30. Qg4 {[%clk 0:01:28]}  Rg6 {[%clk 0:01:43]} 31. Qe2 {[%clk 0:01:22]}  Qf5 {[%clk 0:01:42]} 32. Rxg6 {[%clk 0:01:14]}  Qxh3+ {[%clk 0:01:35]} 33. Qh2 {[%clk 0:01:13]}  Qxh2+ {[%clk 0:01:35]} 34. Kxh2 {[%clk 0:01:13]}  hxg6 {[%clk 0:01:35]} 35. Rxc6 {[%clk 0:01:13]}  Kf7 {[%clk 0:01:33]} 36. Rc7+ {[%clk 0:01:11]}  Kf6 {[%clk 0:01:33]} 37. Rxa7 {[%clk 0:01:10]}  e4 {[%clk 0:01:29]} 38. dxe4 {[%clk 0:01:08]}  dxe4 {[%clk 0:01:29]} 39. Kg2 {[%clk 0:01:07]}  Bc5 {[%clk 0:01:28]} 40. Rc7 {[%clk 0:01:02]}  Bd4 {[%clk 0:01:27]} 41. b4 {[%clk 0:00:59]}  Kf5 {[%clk 0:01:26]} 42. b5 {[%clk 0:00:58]}  g5 {[%clk 0:01:25]} 43. a4 {[%clk 0:00:57]}  g4 {[%clk 0:01:25]} 44. a5 {[%clk 0:00:56]}  g3 {[%clk 0:01:25]} 45. b6 {[%clk 0:00:53]}  e3 {[%clk 0:01:25]} 46. Re7 {[%clk 0:00:49]}  Kf6 {[%clk 0:01:18]} 47. Re4 {[%clk 0:00:46]}  Bc5 {[%clk 0:01:16]} 48. Kxg3 {[%clk 0:00:42]}  g5 {[%clk 0:01:14]} 49. b7 {[%clk 0:00:40]}  Ba7 {[%clk 0:01:14]} 50. Rxe3 {[%clk 0:00:36]}  Bxe3 {[%clk 0:01:13]} 51. b8=Q {[%clk 0:00:35]}  Bf4+ {[%clk 0:01:13]} 52. Qxf4+ {[%clk 0:00:35]}  gxf4+ {[%clk 0:01:12]} 53. Kxf4 {[%clk 0:00:36]}  Ke6 {[%clk 0:01:12]} 54. a6 {[%clk 0:00:37]}  Kd7 {[%clk 0:01:12]} 55. a7 {[%clk 0:00:37]}  Kc7 {[%clk 0:01:02]} 56. a8=Q {[%clk 0:00:38]} 1-0

[Event "December 19 Early 2023"]
[Site "https://www.chess.com"]
[Date "2023.12.19"]
[Round "8"]
[White "DeyanKostov"]
[Black "Mesa Cruz, Juan Carlos"]
[Result "0-1"]
[Board "129"]
[TimeControl "180+1"]
[BlackFideId "6423400"]
[WhiteElo "2476"]
[BlackElo "2142"]
[BlackTeam "DOM"]
[WhiteClock "0:00:40"]
[BlackClock "0:00:06"]

1. d4 {[%clk 0:03:00]}  Nf6 {[%clk 0:02:58]} 2. c4 {[%clk 0:02:49]}  e6 {[%clk 0:02:52]} 3. Nc3 {[%clk 0:02:49]}  Bb4 {[%clk 0:02:48]} 4. e3 {[%clk 0:02:49]}  O-O {[%clk 0:02:46]} 5. Bd3 {[%clk 0:02:49]}  d5 {[%clk 0:02:43]} 6. a3 {[%clk 0:02:49]}  Bxc3+ {[%clk 0:02:42]} 7. bxc3 {[%clk 0:02:50]}  c5 {[%clk 0:02:42]} 8. cxd5 {[%clk 0:02:49]}  exd5 {[%clk 0:02:40]} 9. Ne2 {[%clk 0:02:49]}  b6 {[%clk 0:02:39]} 10. O-O {[%clk 0:02:49]}  Ba6 {[%clk 0:02:39]} 11. a4 {[%clk 0:02:43]}  Bxd3 {[%clk 0:02:37]} 12. Qxd3 {[%clk 0:02:44]}  Re8 {[%clk 0:02:19]} 13. Ba3 {[%clk 0:02:40]}  c4 {[%clk 0:02:02]} 14. Qc2 {[%clk 0:02:38]}  Nc6 {[%clk 0:01:57]} 15. Ng3 {[%clk 0:02:37]}  Qd7 {[%clk 0:01:45]} 16. Rae1 {[%clk 0:02:32]}  h5 {[%clk 0:01:40]} 17. f3 {[%clk 0:02:28]}  h4 {[%clk 0:01:35]} 18. Nf5 {[%clk 0:02:24]}  h3 {[%clk 0:01:31]} 19. g4 {[%clk 0:02:21]}  g6 {[%clk 0:01:29]} 20. Ng3 {[%clk 0:02:19]}  a6 {[%clk 0:01:25]} 21. Bc1 {[%clk 0:01:59]}  b5 {[%clk 0:01:22]} 22. g5 {[%clk 0:01:58]}  Nh7 {[%clk 0:01:17]} 23. e4 {[%clk 0:01:50]}  b4 {[%clk 0:01:16]} 24. e5 {[%clk 0:01:46]}  b3 {[%clk 0:01:07]} 25. Qb1 {[%clk 0:01:46]}  Ne7 {[%clk 0:01:06]} 26. f4 {[%clk 0:01:40]}  Nf5 {[%clk 0:01:03]} 27. Nxf5 {[%clk 0:01:39]}  Qxf5 {[%clk 0:01:03]} 28. Qxf5 {[%clk 0:01:39]}  gxf5 {[%clk 0:01:03]} 29. Rf3 {[%clk 0:01:38]}  Nf8 {[%clk 0:00:55]} 30. Rxh3 {[%clk 0:01:33]}  Ng6 {[%clk 0:00:53]} 31. Rf3 {[%clk 0:01:29]}  Kg7 {[%clk 0:00:49]} 32. Ba3 {[%clk 0:01:26]}  Rh8 {[%clk 0:00:38]} 33. e6 {[%clk 0:01:23]}  Rae8 {[%clk 0:00:31]} 34. e7 {[%clk 0:01:18]}  Rh4 {[%clk 0:00:23]} 35. Bd6 {[%clk 0:01:18]}  f6 {[%clk 0:00:15]} 36. h3 {[%clk 0:01:08]}  fxg5 {[%clk 0:00:13]} 37. fxg5 {[%clk 0:01:09]}  Re4 {[%clk 0:00:09]} 38. Ref1 {[%clk 0:00:58]}  Re6 {[%clk 0:00:06]} 39. Ba3 {[%clk 0:00:54]}  Nxe7 {[%clk 0:00:06]} 40. Bxe7 {[%clk 0:00:54]}  R8xe7 {[%clk 0:00:06]} 41. Rxf5 {[%clk 0:00:55]}  Re1 {[%clk 0:00:06]} 42. Rf2 {[%clk 0:00:42]}  Rxf1+ {[%clk 0:00:05]} 43. Kxf1 {[%clk 0:00:43]}  Re3 {[%clk 0:00:05]} 44. h4 {[%clk 0:00:41]}  Rxc3 {[%clk 0:00:05]} 45. h5 {[%clk 0:00:42]}  Rc1+ {[%clk 0:00:03]} 46. Kg2 {[%clk 0:00:42]}  Rc2 {[%clk 0:00:02]} 47. h6+ {[%clk 0:00:41]}  Kg6 {[%clk 0:00:01]} 48. Kf3 {[%clk 0:00:38]}  Rxf2+ {[%clk 0:00:02]} 49. Kxf2 {[%clk 0:00:39]}  b2 {[%clk 0:00:02]} 50. Ke3 {[%clk 0:00:40]}  b1=Q {[%clk 0:00:02]} 51. Kf4 {[%clk 0:00:41]}  Qe4+ {[%clk 0:00:03]} 52. Kg3 {[%clk 0:00:40]}  Qe3+ {[%clk 0:00:04]} 53. Kg4 {[%clk 0:00:41]}  Qxg5+ {[%clk 0:00:05]} 54. Kf3 {[%clk 0:00:40]}  Qxh6 {[%clk 0:00:06]} 55. Ke2 {[%clk 0:00:40]}  Qg5 {[%clk 0:00:06]} 0-1

[Event "December 19 Early 2023"]
[Site "https://www.chess.com"]
[Date "2023.12.19"]
[Round "8"]
[White "Korol, Dimitry"]
[Black "Mohammadi, Melika"]
[Result "1-0"]
[Board "130"]
[TimeControl "180+1"]
[WhiteFideId "14108003"]
[BlackFideId "42529271"]
[WhiteElo "2262"]
[BlackElo "1901"]
[WhiteTeam "UKR"]
[BlackTeam "IRI"]
[WhiteClock "0:00:43"]
[BlackClock "0:00:00"]

1. d4 {[%clk 0:03:00]}  d5 {[%clk 0:02:59]} 2. c4 {[%clk 0:03:01]}  e6 {[%clk 0:02:59]} 3. Nc3 {[%clk 0:03:01]}  Nf6 {[%clk 0:02:59]} 4. Bg5 {[%clk 0:03:01]}  Be7 {[%clk 0:02:58]} 5. cxd5 {[%clk 0:03:01]}  exd5 {[%clk 0:02:57]} 6. e3 {[%clk 0:03:01]}  c6 {[%clk 0:02:57]} 7. Bd3 {[%clk 0:03:02]}  O-O {[%clk 0:02:57]} 8. Qc2 {[%clk 0:03:02]}  Nbd7 {[%clk 0:02:57]} 9. Nge2 {[%clk 0:03:02]}  Re8 {[%clk 0:02:53]} 10. f3 {[%clk 0:03:02]}  Nf8 {[%clk 0:02:47]} 11. O-O {[%clk 0:03:02]}  g6 {[%clk 0:02:40]} 12. Rad1 {[%clk 0:03:00]}  Ne6 {[%clk 0:02:38]} 13. Bh4 {[%clk 0:02:59]}  b6 {[%clk 0:02:32]} 14. h3 {[%clk 0:02:56]}  Bb7 {[%clk 0:02:25]} 15. Bf2 {[%clk 0:02:56]}  Nh5 {[%clk 0:02:24]} 16. e4 {[%clk 0:02:53]}  Nhf4 {[%clk 0:02:07]} 17. Nxf4 {[%clk 0:02:36]}  Nxf4 {[%clk 0:02:07]} 18. e5 {[%clk 0:02:28]}  c5 {[%clk 0:02:00]} 19. Qd2 {[%clk 0:02:06]}  cxd4 {[%clk 0:01:27]} 20. Qxf4 {[%clk 0:01:43]}  dxc3 {[%clk 0:01:27]} 21. bxc3 {[%clk 0:01:44]}  Bf8 {[%clk 0:01:25]} 22. Bd4 {[%clk 0:01:42]}  Bg7 {[%clk 0:01:22]} 23. Qg3 {[%clk 0:01:39]}  f6 {[%clk 0:01:07]} 24. f4 {[%clk 0:01:39]}  fxe5 {[%clk 0:01:06]} 25. fxe5 {[%clk 0:01:34]}  Qc7 {[%clk 0:01:02]} 26. h4 {[%clk 0:01:31]}  Bxe5 {[%clk 0:00:58]} 27. Qg4 {[%clk 0:01:16]}  Bxd4+ {[%clk 0:00:46]} 28. cxd4 {[%clk 0:01:17]}  Qg7 {[%clk 0:00:32]} 29. h5 {[%clk 0:01:10]}  gxh5 {[%clk 0:00:27]} 30. Qxh5 {[%clk 0:01:10]}  Rf8 {[%clk 0:00:25]} 31. Kh1 {[%clk 0:00:56]}  Rad8 {[%clk 0:00:20]} 32. Rde1 {[%clk 0:00:52]}  Rxf1+ {[%clk 0:00:03]} 33. Rxf1 {[%clk 0:00:51]}  Bc8 {[%clk 0:00:04]} 34. Re1 {[%clk 0:00:46]}  Bg4 {[%clk 0:00:04]} 35. Qh4 {[%clk 0:00:46]}  Rf8 {[%clk 0:00:03]} 36. Re5 {[%clk 0:00:44]}  Rf2 {[%clk 0:00:01]} 37. Rg5 {[%clk 0:00:43]}  Rf1+ {[%clk 0:00:00]} 38. Kh2 {[%clk 0:00:43]} 1-0

[Event "December 19 Early 2023"]
[Site "https://www.chess.com"]
[Date "2023.12.19"]
[Round "8"]
[White "Novak, Ratko"]
[Black "Fernandez Siles, Luis"]
[Result "0-1"]
[Board "135"]
[TimeControl "180+1"]
[WhiteFideId "14511827"]
[BlackFideId "2209420"]
[WhiteElo "2036"]
[BlackElo "2195"]
[WhiteTeam "CRO"]
[BlackTeam "ESP"]
[WhiteClock "0:00:00"]
[BlackClock "0:00:25"]

1. d4 {[%clk 0:03:00]}  Nf6 {[%clk 0:02:59]} 2. c4 {[%clk 0:03:01]}  g6 {[%clk 0:02:59]} 3. Nc3 {[%clk 0:03:01]}  d5 {[%clk 0:02:59]} 4. f3 {[%clk 0:03:01]}  Bg7 {[%clk 0:02:55]} 5. e4 {[%clk 0:03:01]}  dxe4 {[%clk 0:02:51]} 6. fxe4 {[%clk 0:03:02]}  e5 {[%clk 0:02:50]} 7. d5 {[%clk 0:03:02]}  a5 {[%clk 0:02:40]} 8. Be2 {[%clk 0:03:02]}  Na6 {[%clk 0:02:40]} 9. Be3 {[%clk 0:03:01]}  Qe7 {[%clk 0:02:38]} 10. h3 {[%clk 0:02:53]}  Nc5 {[%clk 0:02:34]} 11. Qc2 {[%clk 0:02:53]}  h5 {[%clk 0:02:27]} 12. Rd1 {[%clk 0:02:51]}  h4 {[%clk 0:02:27]} 13. Nb5 {[%clk 0:02:50]}  Nfxe4 {[%clk 0:02:06]} 14. Bxc5 {[%clk 0:02:36]}  Nxc5 {[%clk 0:01:59]} 15. d6 {[%clk 0:02:36]}  cxd6 {[%clk 0:01:58]} 16. Nxd6+ {[%clk 0:02:35]}  Kf8 {[%clk 0:01:59]} 17. Nf3 {[%clk 0:02:29]}  e4 {[%clk 0:01:51]} 18. O-O {[%clk 0:01:40]}  exf3 {[%clk 0:01:49]} 19. Rxf3 {[%clk 0:01:40]}  Be6 {[%clk 0:01:40]} 20. Qxg6 {[%clk 0:01:37]}  Rd8 {[%clk 0:01:18]} 21. Nxf7 {[%clk 0:00:40]}  Rxd1+ {[%clk 0:01:17]} 22. Bxd1 {[%clk 0:00:40]}  Bxf7 {[%clk 0:01:16]} 23. Rf1 {[%clk 0:00:29]}  Rh6 {[%clk 0:01:03]} 24. Qf5 {[%clk 0:00:15]}  Kg8 {[%clk 0:00:47]} 25. Qc8+ {[%clk 0:00:12]}  Be8 {[%clk 0:00:47]} 26. Bg4 {[%clk 0:00:09]}  Rc6 {[%clk 0:00:42]} 27. Qb8 {[%clk 0:00:08]}  Bd4+ {[%clk 0:00:39]} 28. Kh1 {[%clk 0:00:08]}  Rf6 {[%clk 0:00:33]} 29. Rd1 {[%clk 0:00:05]}  Be5 {[%clk 0:00:28]} 30. Qc8 {[%clk 0:00:03]}  Bc7 {[%clk 0:00:26]} 31. Bh5 {[%clk 0:00:02]}  Rf8 {[%clk 0:00:25]} 32. Qg4+ {[%clk 0:00:00]}  Qg7 {[%clk 0:00:25]} 0-1